bitfinex-derivatives/quotes_BTCF0:USTF0_20250912
["timestamp","ask_amount","ask_price","bid_price","bid_amount"]
[1757680302487,1.17790403,115150.0,115140.0,0.03106]
[1757680302897,1.17790304,115150.0,115140.0,0.008]
[1757680305197,1.15661415,115150.0,115140.0,0.3688]
[1757680306503,1.28125959,115150.0,115140.0,0.3688]
[1757680308598,1.28109959,115150.0,115140.0,0.3688]
[1757680309908,1.28109959,115150.0,115140.0,0.008]
[1757680310095,1.30239028,115150.0,115140.0,0.008]
[1757680314802,0.50231028,115150.0,115140.0,0.02957]
[1757680315004,1.30227028,115150.0,115140.0,0.39037]
[1757680315597,0.02489069,115150.0,115140.0,1.21228285]
[1757680315794,0.0036,115150.0,115140.0,1.2301057]
[1757680316099,0.43800095,115170.0,115160.0,0.02157]
[1757680316302,0.43800095,115170.0,115160.0,0.93001095]
[1757680317500,0.25216,115170.0,115160.0,0.93201095]
[1757680317705,0.43900095,115170.0,115160.0,0.93201095]
[1757680318106,0.25216,115170.0,115160.0,0.74517]
[1757680318306,0.43900095,115170.0,115160.0,0.93201095]
[1757680318506,0.43900095,115170.0,115160.0,0.93301095]
[1757680319213,0.43900095,115170.0,115160.0,0.74617]
[1757680319403,0.43900095,115170.0,115160.0,0.93301095]
[1757680320506,1.02392095,115170.0,115160.0,0.93301095]
[1757680321008,0.83708,115170.0,115160.0,0.93301095]
[1757680321306,1.02392095,115170.0,115160.0,0.93301095]
[1757680321508,1.02392095,115170.0,115160.0,1.3698519]
[1757680321914,1.02392095,115170.0,115160.0,1.18301095]
[1757680322505,0.22404095,115170.0,115160.0,1.3698519]
[1757680322709,0.001,115170.0,115160.0,1.3698519]
[1757680322906,0.80076,115170.0,115160.0,1.3698519]
[1757680323511,0.001,115170.0,115160.0,1.37848531]
[1757680323913,0.72848,115170.0,115160.0,1.37848531]
[1757680324916,0.001,115170.0,115160.0,1.37848531]
[1757680330812,0.001,115170.0,115160.0,1.3698519]
[1757680333626,0.001,115170.0,115160.0,1.37865855]
[1757680333929,0.001,115170.0,115160.0,1.3698519]
[1757680336622,0.001,115170.0,115160.0,1.37861243]
[1757680337427,0.001,115170.0,115160.0,1.56545338]
[1757680338230,0.001,115170.0,115160.0,1.37861243]
[1757680339731,0.001,115170.0,115160.0,1.56545338]
[1757680340730,0.0016,115190.0,115180.0,0.03246]
[1757680340929,0.0016,115190.0,115180.0,1.1277419]
[1757680342731,0.81298,115200.0,115180.0,1.1277419]
[1757680342933,0.03702,115200.0,115190.0,0.57019095]
[1757680343129,0.83626,115200.0,115190.0,0.56919095]
[1757680344133,0.83826,115200.0,115190.0,0.57019095]
[1757680344333,0.03902,115200.0,115190.0,0.57019095]
[1757680344536,0.83822,115200.0,115190.0,0.57019095]
[1757680345031,0.22486095,115200.0,115190.0,0.57119095]
[1757680345336,0.03802,115200.0,115190.0,0.57119095]
[1757680345538,1.02402095,115200.0,115190.0,0.57119095]
[1757680345738,1.02402095,115200.0,115190.0,0.56919095]
[1757680345939,1.02402095,115200.0,115190.0,0.57119095]
[1757680346839,1.2108619,115200.0,115190.0,0.38435]
[1757680347138,1.2108619,115200.0,115190.0,0.3618]
[1757680347342,1.2108619,115200.0,115190.0,0.38535]
[1757680347937,1.2108619,115200.0,115190.0,0.57219095]
[1757680348131,1.23416945,115200.0,115190.0,0.57219095]
[1757680349547,1.23416945,115200.0,115190.0,0.38535]
[1757680349842,1.23416945,115200.0,115190.0,0.57219095]
[1757680351839,1.48416945,115200.0,115190.0,0.38535]
[1757680352042,2.0318104,115200.0,115190.0,0.003]
[1757680352345,2.06290057,115200.0,115190.0,0.003]
[1757680352637,0.01284,115170.0,115160.0,0.3608]
[1757680352847,1.25053074,115170.0,115160.0,0.3608]
[1757680354142,1.25153074,115170.0,115160.0,0.3638]
[1757680354344,1.31949346,115170.0,115160.0,0.3638]
[1757680354543,1.31949346,115170.0,115160.0,0.3648]
[1757680355044,1.13265251,115170.0,115160.0,0.3648]
[1757680355837,1.31949346,115170.0,115160.0,0.3648]
[1757680359341,1.31949346,115170.0,115160.0,0.004]
[1757680359640,0.01284,115150.0,115140.0,0.3608]
[1757680359841,1.01990095,115150.0,115140.0,0.3608]
[1757680360038,1.01990095,115150.0,115140.0,0.38335]
[1757680360835,1.01990095,115150.0,115140.0,0.38635]
[1757680361045,1.02090095,115150.0,115140.0,0.39135]
[1757680361841,0.22198095,115150.0,115140.0,0.57819095]
[1757680362143,1.02094095,115150.0,115140.0,0.57819095]
[1757680362345,0.22198095,115150.0,115140.0,0.57819095]
[1757680362538,1.02090095,115150.0,115140.0,0.39135]
[1757680366345,0.95859394,115150.0,115140.0,0.39135]
[1757680372249,0.95851394,115150.0,115140.0,0.39135]
[1757680378354,0.98179722,115150.0,115140.0,0.39135]
[1757680380051,0.85726328,115150.0,115140.0,0.39135]
[1757680380253,0.98179722,115150.0,115140.0,0.39135]
[1757680380553,0.95851394,115150.0,115140.0,0.39135]
[1757680380952,0.95839394,115150.0,115140.0,0.39135]
[1757680381152,0.83386,115150.0,115140.0,0.39135]
[1757680381354,0.95839394,115150.0,115140.0,0.39135]
[1757680382359,0.9817416,115150.0,115140.0,0.39135]
[1757680382554,0.9817416,115150.0,115140.0,0.3688]
[1757680382757,1.71707554,115150.0,115140.0,0.008]
[1757680384457,1.74828396,115150.0,115140.0,0.008]
[1757680385653,0.94956396,115150.0,115140.0,0.008]
[1757680385858,1.74820396,115150.0,115140.0,0.008]
[1757680386355,0.94956396,115150.0,115140.0,0.008]
[1757680386555,1.74820396,115150.0,115140.0,0.008]
[1757680391860,1.74820396,115150.0,115120.0,0.3608]
[1757680391861,1.8727379,115150.0,115120.0,0.3608]
[1757680392064,0.03463,115110.0,115100.0,0.38203]
[1757680392372,0.95772394,115110.0,115100.0,0.38203]
[1757680392566,0.98105194,115110.0,115100.0,0.38203]
[1757680392755,1.05032836,115110.0,115100.0,0.38203]
[1757680392957,0.22844036,115110.0,115100.0,0.38203]
[1757680393165,1.02700036,115110.0,115100.0,0.38203]
[1757680393757,0.22844036,115110.0,115100.0,0.38203]
[1757680393956,1.02800036,115110.0,115100.0,0.38703]
[1757680394358,1.02700036,115110.0,115100.0,0.38403]
[1757680394559,1.02800036,115110.0,115100.0,0.38503]
[1757680395357,1.03684815,115110.0,115100.0,0.38503]
[1757680396365,0.90346642,115110.0,115100.0,0.38503]
[1757680396568,1.02800036,115110.0,115100.0,0.38503]
[1757680397965,1.03658479,115110.0,115100.0,0.38503]
[1757680398265,1.02800036,115110.0,115100.0,0.38503]
[1757680398766,0.90346642,115110.0,115100.0,0.38503]
[1757680399066,1.02800036,115110.0,115100.0,0.38503]
[1757680400069,1.03691577,115110.0,115100.0,0.38503]
[1757680400365,0.90346642,115110.0,115100.0,0.38503]
[1757680400866,1.02800036,115110.0,115100.0,0.38503]
[1757680403472,1.03661963,115110.0,115100.0,0.38503]
[1757680403663,1.02800036,115110.0,115100.0,0.38503]
[1757680405572,1.0367845,115110.0,115100.0,0.38503]
[1757680414077,1.06011964,115110.0,115100.0,0.38503]
[1757680414670,1.18465358,115110.0,115100.0,0.38503]
[1757680417275,1.18725358,115110.0,115100.0,0.38503]
[1757680417867,1.06271964,115110.0,115100.0,0.38503]
[1757680418975,1.18725358,115110.0,115100.0,0.38503]
[1757680419279,1.20764383,115110.0,115100.0,0.3638]
[1757680419479,1.20764383,115110.0,115100.0,0.38587]
[1757680420274,1.20764383,115110.0,115100.0,0.3638]
[1757680420582,1.20764383,115110.0,115100.0,0.003]
[1757680420779,1.45764383,115110.0,115100.0,0.003]
[1757680421676,1.97418619,115110.0,115100.0,0.003]
[1757680421877,1.8959383,115110.0,115100.0,0.003]
[1757680422576,1.0973783,115110.0,115100.0,0.003]
[1757680422775,1.8955383,115110.0,115100.0,0.003]
[1757680424088,1.84925225,115110.0,115100.0,0.003]
[1757680424378,1.84921225,115110.0,115100.0,0.003]
[1757680425586,1.60018437,115110.0,115100.0,0.003]
[1757680425774,1.84921225,115110.0,115100.0,0.003]
[1757680427386,1.81800383,115110.0,115100.0,0.003]
[1757680428490,1.94293717,115110.0,115100.0,0.003]
[1757680429592,1.97414559,115110.0,115100.0,0.003]
[1757680429992,1.17602559,115110.0,115100.0,0.003]
[1757680430193,1.97410559,115110.0,115100.0,0.003]
[1757680430885,1.17602559,115110.0,115100.0,0.003]
[1757680431089,1.97410559,115110.0,115100.0,0.003]
[1757680433489,1.94289717,115110.0,115100.0,0.003]
[1757680434092,1.97410559,115110.0,115100.0,0.003]
[1757680437294,2.1611062,115110.0,115100.0,0.003]
[1757680438798,1.97410559,115110.0,115100.0,0.003]
[1757680439592,0.92602559,115110.0,115100.0,0.003]
[1757680439797,1.14493656,115110.0,115100.0,0.02566]
[1757680440198,1.33193717,115110.0,115100.0,0.003]
[1757680441395,1.33193717,115110.0,115100.0,0.02566]
[1757680441903,1.33193717,115110.0,115100.0,0.003]
[1757680442094,1.69273717,115110.0,115100.0,0.003]
[1757680442900,1.87973778,115110.0,115100.0,0.003]
[1757680446203,1.87713778,115110.0,115100.0,0.003]
[1757680448005,1.69013717,115110.0,115100.0,0.003]
[1757680448203,1.87713778,115110.0,115100.0,0.003]
[1757680448403,1.9083462,115110.0,115100.0,0.003]
[1757680448603,1.87713778,115110.0,115100.0,0.003]
[1757680448803,1.72374559,115110.0,115100.0,0.003]
[1757680448999,1.69253717,115110.0,115100.0,0.003]
[1757680449201,1.72374559,115110.0,115100.0,0.003]
[1757680451710,1.9107462,115110.0,115100.0,0.003]
[1757680452008,1.72374559,115110.0,115100.0,0.003]
[1757680452511,1.70041045,115110.0,115100.0,0.003]
[1757680452712,1.72389906,115110.0,115100.0,0.003]
[1757680454009,1.95718572,115110.0,115100.0,0.003]
[1757680456406,1.91089967,115110.0,115100.0,0.003]
[1757680456611,1.95718572,115110.0,115100.0,0.003]
[1757680456811,1.91089967,115110.0,115100.0,0.003]
[1757680457007,1.91077967,115110.0,115100.0,0.003]
[1757680459306,3.58005967,115110.0,115100.0,0.003]
[1757680460311,3.43934511,115110.0,115100.0,0.003]
[1757680460504,2.64174511,115110.0,115100.0,0.003]
[1757680460700,3.43922511,115110.0,115100.0,0.003]
[1757680461702,3.57993967,115110.0,115100.0,0.003]
[1757680462013,2.78245967,115110.0,115100.0,0.003]
[1757680462216,3.57989967,115110.0,115100.0,0.003]
[1757680463311,2.59545906,115110.0,115100.0,0.003]
[1757680463513,3.39289906,115110.0,115100.0,0.003]
[1757680464014,3.39285906,115110.0,115100.0,0.003]
[1757680464617,3.03205906,115110.0,115100.0,0.003]
[1757680465213,3.39285906,115110.0,115100.0,0.003]
[1757680466316,3.57985967,115110.0,115100.0,0.003]
[1757680467017,2.78245967,115110.0,115100.0,0.003]
[1757680467218,3.39277906,115110.0,115100.0,0.003]
[1757680467418,2.59545906,115110.0,115100.0,0.003]
[1757680467612,3.39277906,115110.0,115100.0,0.003]
[1757680469419,2.23465906,115110.0,115100.0,0.003]
[1757680469622,3.39273906,115110.0,115100.0,0.003]
[1757680470012,3.03193906,115110.0,115100.0,0.003]
[1757680470214,3.36153064,115110.0,115100.0,0.003]
[1757680471720,3.00073064,115110.0,115100.0,0.003]
[1757680473217,3.36153064,115110.0,115100.0,0.003]
[1757680473411,3.00073064,115110.0,115100.0,0.003]
[1757680473922,3.54853125,115110.0,115100.0,0.003]
[1757680477320,3.36153064,115110.0,115100.0,0.003]
[1757680481023,3.39273906,115110.0,115100.0,0.003]
[1757680481222,3.36153064,115110.0,115100.0,0.003]
[1757680482222,3.39273906,115110.0,115100.0,0.003]
[1757680482914,3.57973967,115110.0,115100.0,0.003]
[1757680483115,3.54853125,115110.0,115080.0,0.3608]
[1757680483315,0.40936122,115090.0,115080.0,0.3608]
[1757680483515,1.22984983,115090.0,115080.0,0.3608]
[1757680483717,0.03536,115080.0,115070.0,0.38321]
[1757680483917,0.40936122,115080.0,115070.0,0.38321]
[1757680484319,0.03536,115070.0,115060.0,0.40082823]
[1757680484528,1.20636122,115070.0,115060.0,0.40082823]
[1757680486226,1.20736122,115070.0,115060.0,0.40182823]
[1757680487429,1.20996122,115070.0,115060.0,0.40182823]
[1757680488135,1.27972733,115070.0,115060.0,0.40182823]
[1757680488433,1.03044739,115070.0,115060.0,0.40182823]
[1757680489834,1.15516867,115070.0,115060.0,0.40182823]
[1757680490625,1.03044739,115070.0,115060.0,0.40182823]
[1757680492528,1.03036739,115070.0,115060.0,0.40182823]
[1757680493627,0.23344739,115070.0,115060.0,0.40182823]
[1757680493831,0.90564611,115070.0,115060.0,0.40182823]
[1757680494027,0.23344739,115070.0,115060.0,0.40182823]
[1757680494326,1.03036739,115070.0,115060.0,0.40182823]
[1757680495827,0.23344739,115070.0,115060.0,0.40182823]
[1757680496132,1.03032739,115070.0,115060.0,0.40182823]
[1757680498532,0.23344739,115070.0,115060.0,0.40182823]
[1757680498734,0.90556611,115070.0,115060.0,0.52654951]
[1757680499932,1.03028739,115070.0,115060.0,0.52654951]
[1757680500932,1.03028739,115070.0,115060.0,0.40182823]
[1757680501321,1.03028739,115070.0,115060.0,0.90500079]
[1757680501322,0.80044,115070.0,115060.0,0.90500079]
[1757680501521,0.8004,115070.0,115060.0,0.90500079]
[1757680503228,0.0036,115070.0,115060.0,0.90500079]
[1757680503433,0.75936,115070.0,115060.0,0.90500079]
[1757680504232,0.0036,115070.0,115060.0,0.90500079]
[1757680504439,0.62544,115070.0,115060.0,0.90500079]
[1757680505727,0.62544,115070.0,115060.0,0.65555823]
[1757680506033,0.64707,115070.0,115060.0,0.78027951]
[1757680506935,0.65983,115070.0,115060.0,0.77654951]
[1757680511544,0.64707,115070.0,115060.0,0.78027951]
[1757680512641,0.02523,115070.0,115060.0,0.78027951]
[1757680512943,0.0036,115070.0,115060.0,0.76266128]
[1757680513146,0.02523,115070.0,115060.0,0.76266128]
[1757680513346,0.03799,115070.0,115060.0,0.75893128]
[1757680515041,0.16271128,115070.0,115060.0,0.38421]
[1757680515244,0.53743256,115070.0,115060.0,0.3618]
[1757680516547,0.56092032,115070.0,115060.0,0.3618]
[1757680516950,1.23271904,115070.0,115060.0,0.38439]
[1757680517250,1.35744032,115070.0,115060.0,0.3618]
[1757680517734,1.33395256,115070.0,115060.0,0.3618]
[1757680518141,1.20923128,115070.0,115060.0,0.3618]
[1757680518548,1.27744765,115070.0,115060.0,0.3618]
[1757680519350,1.30092777,115070.0,115060.0,0.3618]
[1757680520646,1.30092777,115070.0,115060.0,0.38439]
[1757680520953,0.50440777,115070.0,115060.0,0.38439]
[1757680521154,1.30092777,115070.0,115060.0,0.38439]
[1757680522959,1.30092777,115070.0,115060.0,0.3618]
[1757680523157,1.78644905,115070.0,115060.0,0.001]
[1757680525259,1.76296893,115070.0,115060.0,0.001]
[1757680525954,0.96644893,115070.0,115060.0,0.001]
[1757680526155,1.76292893,115070.0,115060.0,0.001]
[1757680529158,0.96644893,115070.0,115060.0,0.001]
[1757680529360,0.60564893,115070.0,115060.0,0.38373]
[1757680529564,1.40208893,115070.0,115060.0,0.02293]
[1757680529761,0.60564893,115070.0,115060.0,0.38373]
[1757680529969,1.40208893,115070.0,115060.0,0.38373]
[1757680531158,1.40208893,115070.0,115060.0,0.3618]
[1757680531358,1.40208893,115070.0,115060.0,0.001]
[1757680534468,1.76288893,115070.0,115060.0,0.001]
[1757680534660,1.76288893,115070.0,115040.0,0.3608]
[1757680534661,0.013,115050.0,115040.0,0.3608]
[1757680534868,1.08110256,115050.0,115040.0,0.3608]
[1757680535769,1.10174671,115050.0,115040.0,0.3628]
[1757680535962,1.10374671,115050.0,115040.0,0.3638]
[1757680536763,0.97902543,115050.0,115040.0,0.3638]
[1757680537471,0.97902543,115050.0,115040.0,0.3628]
[1757680537968,1.10634671,115050.0,115040.0,0.3628]
[1757680538374,1.10634671,115050.0,115040.0,0.3618]
[1757680538564,1.11527434,115050.0,115040.0,0.001]
[1757680538957,1.38873272,115050.0,115040.0,0.001]
[1757680539369,1.13873272,115050.0,115040.0,0.001]
[1757680539868,0.34237272,115050.0,115040.0,0.001]
[1757680540063,1.13873272,115050.0,115040.0,0.001]
[1757680541364,0.34237272,115050.0,115040.0,0.001]
[1757680541765,1.13873272,115050.0,115040.0,0.001]
[1757680541970,1.13869272,115050.0,115040.0,0.001]
[1757680543770,0.34237272,115050.0,115040.0,0.001]
[1757680543971,1.13873087,115050.0,115040.0,0.001]
[1757680548172,1.13873087,115050.0,115040.0,0.001]
[1757680549974,1.49953087,115050.0,115040.0,0.001]
[1757680550375,1.62445069,115050.0,115040.0,0.001]
[1757680556982,0.82809069,115050.0,115040.0,0.001]
[1757680557183,1.62433069,115050.0,115040.0,0.001]
[1757680559086,1.58903069,115050.0,115040.0,0.001]
[1757680559287,1.62336069,115050.0,115040.0,0.001]
[1757680560482,0.46632069,115050.0,115040.0,0.001]
[1757680560689,1.0753395,115050.0,115040.0,0.02335]
[1757680562387,0.2791395,115050.0,115040.0,0.57133119]
[1757680562589,1.0752595,115050.0,115040.0,0.57133119]
[1757680563490,1.0752595,115050.0,115040.0,0.38415]
[1757680564593,1.0752195,115050.0,115040.0,0.38415]
[1757680565294,1.26240069,115050.0,115040.0,0.3618]
[1757680567891,1.26240069,115050.0,115040.0,0.001]
[1757680570798,1.81038188,115050.0,115040.0,0.001]
[1757680571299,1.62320069,115050.0,115040.0,0.001]
[1757680571891,1.81038188,115050.0,115040.0,0.001]
[1757680572294,0.01285,115030.0,115020.0,0.3608]
[1757680572490,1.20461238,115030.0,115020.0,0.3608]
[1757680572689,0.03433,115020.0,115010.0,0.38315]
[1757680572895,0.40869238,115020.0,115010.0,0.38315]
[1757680573498,0.47772404,115020.0,115010.0,0.38315]
[1757680573901,0.47772404,115020.0,115010.0,0.38615]
[1757680574292,0.47972404,115020.0,115010.0,0.38615]
[1757680575094,0.48232404,115020.0,115010.0,0.38615]
[1757680575904,1.27824404,115020.0,115010.0,0.38615]
[1757680576800,1.27824404,115020.0,115010.0,0.3638]
[1757680576994,1.27824404,115020.0,115010.0,0.003]
[1757680576995,0.48232404,115020.0,115010.0,0.003]
[1757680577200,1.27820404,115020.0,115010.0,0.003]
[1757680578208,1.27820404,115020.0,115010.0,0.3638]
[1757680578506,1.27820404,115020.0,115010.0,0.38615]
[1757680578707,2.77820404,115020.0,115010.0,0.38515]
[1757680579302,1.27820404,115020.0,115010.0,0.38515]
[1757680580502,1.27820404,115020.0,115010.0,0.02435]
[1757680581504,0.48232404,115020.0,115010.0,0.02435]
[1757680582108,1.27820404,115020.0,115010.0,0.02435]
[1757680583110,0.48232404,115020.0,115010.0,0.02435]
[1757680583412,1.27816404,115020.0,115010.0,0.02435]
[1757680584313,1.27820404,115020.0,115010.0,0.38515]
[1757680585612,0.48232404,115020.0,115010.0,0.38515]
[1757680585915,1.27820404,115020.0,115010.0,0.38515]
[1757680587412,0.48232404,115020.0,115010.0,0.38515]
[1757680587819,1.27812404,115020.0,115010.0,0.38515]
[1757680589910,0.48232404,115020.0,115010.0,0.38515]
[1757680590811,1.27808404,115020.0,115010.0,0.38515]
[1757680595417,0.48232404,115020.0,115010.0,0.38515]
[1757680595917,1.27800404,115020.0,115010.0,0.38515]
[1757680596114,0.48232404,115020.0,115010.0,0.38515]
[1757680596523,1.27800404,115020.0,115010.0,0.38515]
[1757680598523,0.10796166,115020.0,115010.0,0.84027581]
[1757680598722,1.09082285,115020.0,115010.0,0.84027581]
[1757680598913,0.10796166,115020.0,115010.0,0.84027581]
[1757680599114,0.0046,115020.0,115010.0,0.66426462]
[1757680599318,0.0046,115020.0,115010.0,1.1255565]
[1757680599623,0.0046,115020.0,115010.0,0.8755565]
[1757680599917,0.80024,115020.0,115010.0,0.8755565]
[1757680600315,0.0046,115020.0,115010.0,0.8755565]
[1757680600624,0.8002,115020.0,115010.0,0.8755565]
[1757680601723,0.0046,115020.0,115010.0,0.8755565]
[1757680601924,0.8002,115020.0,115010.0,1.1255565]
[1757680602413,0.80016,115020.0,115010.0,1.1255565]
[1757680604421,0.0046,115020.0,115010.0,1.1255565]
[1757680605523,0.80008,115020.0,115010.0,1.1255565]
[1757680607427,0.0046,115020.0,115010.0,1.1255565]
[1757680610628,0.0046,115020.0,115010.0,0.75069848]
[1757680610824,0.0046,115020.0,115010.0,1.00069848]
[1757680611027,0.79536,115030.0,115020.0,0.01017]
[1757680611323,0.79536,115030.0,115020.0,0.64189436]
[1757680611528,0.79536,115030.0,115020.0,0.72881636]
[1757680611729,0.79536,115030.0,115020.0,0.73745122]
[1757680612123,0.79536,115030.0,115020.0,0.73845122]
[1757680612430,0.79532,115030.0,115020.0,0.73845122]
[1757680612826,0.79732,115030.0,115020.0,0.73845122]
[1757680613429,0.002,115030.0,115020.0,0.73845122]
[1757680613628,0.79728,115030.0,115020.0,0.73845122]
[1757680614719,0.79728,115030.0,115020.0,0.65152922]
[1757680617628,0.81835,115030.0,115020.0,0.65152922]
[1757680618128,0.79728,115030.0,115020.0,0.65152922]
[1757680620434,0.79728,115030.0,115020.0,0.73845122]
[1757680621338,0.002,115030.0,115020.0,0.40202486]
[1757680621536,0.79716,115030.0,115020.0,0.65152922]
[1757680624040,0.002,115030.0,115020.0,0.65152922]
[1757680624631,0.002,115030.0,115020.0,0.73845122]
[1757680624836,0.002,115030.0,115020.0,1.53349122]
[1757680627235,0.002,115030.0,115020.0,0.73845122]
[1757680627435,0.002,115030.0,115020.0,1.53345122]
[1757680628936,0.82849415,115050.0,115020.0,1.98605151]
[1757680629143,0.84956415,115050.0,115040.0,1.00314436]
[1757680630237,0.84956415,115050.0,115040.0,0.87839218]
[1757680630439,0.84956415,115050.0,115040.0,0.74347]
[1757680630634,0.85056415,115050.0,115040.0,0.86922218]
[1757680631335,0.85156415,115050.0,115040.0,0.86922218]
[1757680632142,0.85056415,115050.0,115040.0,0.86922218]
[1757680632331,0.85156415,115050.0,115040.0,0.86922218]
[1757680639550,0.05656415,115050.0,115040.0,0.99397436]
[1757680639750,0.83847415,115050.0,115040.0,0.99397436]
[1757680639945,0.81783,115050.0,115040.0,0.99397436]
[1757680640547,0.02307,115050.0,115040.0,0.99397436]
[1757680640753,0.79676,115050.0,115040.0,0.99397436]
[1757680641053,0.81783,115050.0,115040.0,0.99397436]
[1757680643045,0.79676,115050.0,115040.0,0.74447]
[1757680643251,0.002,115050.0,115040.0,0.99397436]
[1757680643650,0.02377,115050.0,115040.0,0.99397436]
[1757680650254,0.03697,115050.0,115040.0,0.86922218]
[1757680650658,0.03697,115050.0,115040.0,0.74447]
[1757680650954,0.03697,115050.0,115040.0,0.86922218]
[1757680653362,0.03697,115050.0,115040.0,0.99397436]
[1757680658370,0.03697,115050.0,115040.0,0.74447]
[1757680658573,0.03697,115050.0,115040.0,0.99397436]
[1757680665263,0.03697,115050.0,115040.0,1.07204446]
[1757680666375,0.03697,115050.0,115040.0,0.99397436]
[1757680668470,0.16172218,115050.0,115040.0,0.74447]
[1757680668771,0.16172218,115050.0,115040.0,0.86922218]
[1757680668972,0.03697,115050.0,115040.0,0.86922218]
[1757680669268,0.03697,115050.0,115040.0,0.99397436]
[1757680669469,0.03697,115050.0,115040.0,1.07204446]
[1757680669670,0.03697,115050.0,115040.0,0.94729228]
[1757680670473,0.01658952,115050.0,115040.0,0.96098228]
[1757680670779,0.00338952,115050.0,115040.0,0.96098228]
[1757680672476,0.19047078,115050.0,115040.0,1.21039262]
[1757680674681,0.00338952,115050.0,115040.0,1.21039262]
[1757680674880,0.19047078,115050.0,115040.0,1.21039262]
[1757680675277,0.00338952,115050.0,115040.0,1.21039262]
[1757680676582,0.00338952,115050.0,115040.0,1.13232252]
[1757680686184,0.02465,115060.0,115050.0,0.03508]
[1757680686377,0.04813778,115060.0,115050.0,0.78793717]
[1757680686794,0.04813778,115060.0,115050.0,0.60085591]
[1757680687383,0.23521904,115060.0,115050.0,0.60085591]
[1757680687583,0.24910904,115060.0,115050.0,0.58686591]
[1757680687782,0.6861903,115060.0,115050.0,0.39978465]
[1757680688194,0.6861903,115060.0,115050.0,0.58686591]
[1757680688394,0.75400933,115060.0,115050.0,0.39978465]
[1757680688591,0.75400933,115060.0,115050.0,0.58686591]
[1757680688983,0.75600933,115060.0,115050.0,0.58686591]
[1757680689186,0.75700933,115060.0,115050.0,0.58886591]
[1757680689686,0.75700933,115060.0,115050.0,0.58686591]
[1757680689687,0.75600933,115060.0,115050.0,0.58686591]
[1757680689878,0.75500933,115060.0,115050.0,0.58986591]
[1757680690077,0.75600933,115060.0,115050.0,0.58986591]
[1757680691482,0.94309059,115060.0,115050.0,0.38169465]
[1757680691678,1.30389059,115060.0,115050.0,0.02089465]
[1757680691878,1.33515136,115060.0,115050.0,0.001]
[1757680692084,0.03594,115040.0,115030.0,0.0178671]
[1757680692294,1.2274303,115040.0,115030.0,0.0178671]
[1757680693388,1.2284303,115040.0,115030.0,0.0218671]
[1757680693695,1.2284303,115040.0,115030.0,0.0429571]
[1757680695684,1.24835023,115040.0,115030.0,0.02509]
[1757680695890,1.24835023,115040.0,115030.0,0.02609]
[1757680696190,1.22486245,115040.0,115030.0,0.02609]
[1757680696391,1.2482895,115040.0,115030.0,0.02609]
[1757680697394,1.22486245,115040.0,115030.0,0.02609]
[1757680697595,1.22486245,115040.0,115030.0,0.38689]
[1757680697596,1.24828346,115040.0,115030.0,0.38689]
[1757680698092,1.22486245,115040.0,115030.0,0.38689]
[1757680700200,1.22486245,115040.0,115030.0,0.3658]
[1757680700491,1.66194371,115040.0,115030.0,0.005]
[1757680700690,1.68535088,115040.0,115030.0,0.005]
[1757680701494,1.49826962,115040.0,115030.0,0.005]
[1757680702798,0.70442962,115040.0,115030.0,0.005]
[1757680702989,1.49826962,115040.0,115030.0,0.02609]
[1757680703297,1.50086962,115040.0,115030.0,0.02609]
[1757680703603,0.3328671,115040.0,115030.0,0.02609]
[1757680703793,1.50086962,115040.0,115030.0,0.02609]
[1757680704303,1.50082962,115040.0,115030.0,0.02609]
[1757680704700,1.50086962,115040.0,115030.0,0.02609]
[1757680706306,1.50082962,115040.0,115030.0,0.02609]
[1757680706497,1.50086962,115040.0,115030.0,0.02609]
[1757680707102,1.50077645,115040.0,115030.0,0.02609]
[1757680708602,1.12661393,115040.0,115030.0,0.02609]
[1757680708800,0.68362245,115040.0,115030.0,0.02609]
[1757680709004,1.47742245,115040.0,115030.0,0.02609]
[1757680711300,1.22742245,115040.0,115030.0,0.38689]
[1757680711598,0.05945993,115040.0,115030.0,0.57397126]
[1757680711905,0.05945993,115040.0,115030.0,0.82397126]
[1757680711906,1.04030119,115040.0,115030.0,0.82397126]
[1757680715315,0.85321993,115040.0,115030.0,0.82397126]
[1757680715621,1.04026119,115040.0,115030.0,0.82397126]
[1757680715822,0.24654119,115040.0,115030.0,0.82397126]
[1757680716015,1.04026119,115040.0,115030.0,0.82397126]
[1757680716319,1.04026119,115040.0,115030.0,0.63689]
[1757680716522,1.04026119,115040.0,115030.0,0.82397126]
[1757680717313,1.22734245,115040.0,115030.0,0.63689]
[1757680717528,1.22734245,115040.0,115030.0,0.38689]
[1757680717717,1.22734245,115040.0,115030.0,0.3658]
[1757680718019,1.41442371,115040.0,115030.0,0.005]
[1757680718224,0.87652763,115040.0,115030.0,0.005]
[1757680718413,1.25069015,115040.0,115030.0,0.005]
[1757680734334,1.12611793,115040.0,115030.0,0.005]
[1757680737138,1.12611793,115040.0,115030.0,0.02743]
[1757680737337,0.33244661,115040.0,115030.0,0.02743]
[1757680737533,1.12596661,115040.0,115030.0,0.02743]
[1757680741336,1.12596661,115040.0,115030.0,0.005]
[1757680741538,1.61156176,115040.0,115030.0,0.005]
[1757680741744,1.89283636,115040.0,115030.0,0.005]
[1757680742139,1.93972751,115040.0,115030.0,0.005]
[1757680743135,1.90845291,115040.0,115030.0,0.005]
[1757680743342,1.93972471,115040.0,115030.0,0.005]
[1757680743938,1.90845291,115040.0,115030.0,0.005]
[1757680744131,1.89283612,115040.0,115030.0,0.005]
[1757680746343,1.09931612,115040.0,115030.0,0.005]
[1757680746543,1.76800097,115040.0,115030.0,0.005]
[1757680746841,1.89279612,115040.0,115030.0,0.005]
[1757680747047,1.76800097,115040.0,115030.0,0.005]
[1757680747445,0.97452097,115040.0,115030.0,0.005]
[1757680747646,1.76800097,115040.0,115030.0,0.005]
[1757680748546,1.76796097,115040.0,115030.0,0.005]
[1757680750048,0.97452097,115040.0,115030.0,0.005]
[1757680750251,1.76796097,115040.0,115030.0,0.005]
[1757680752046,0.97452097,115040.0,115030.0,0.005]
[1757680752250,1.12588661,115040.0,115030.0,0.005]
[1757680754860,1.12588661,115040.0,115030.0,0.02743]
[1757680755053,1.12588661,115040.0,115030.0,0.005]